[Event "WCCC G10 2019"]
[Site "Weifang"]
[Date "2019.08.23"]
[Round "3.4"]
[White "Chen, Yining"]
[Black "Gaszka, Zuzanna"]
[Result "1-0"]
[ECO "D06"]
[WhiteElo "1744"]
[BlackElo "1230"]
[Annotator "NA"]
[PlyCount "135"]
[EventDate "2019.08.21"]
[EventType "swiss"]
[EventCountry "CHN"]
[SourceTitle "playchess.com"]
[Source "ChessBase"]
[SourceQuality "1"]
[TimeControl "40/5400+30:1800+30"]

1. d4 {[%emt 0:00:00]} d5 {[%emt 0:00:00]} 2. c4 {[%emt 0:00:00]} Bf5 {[%emt 0:00:04]} 3. Nc3 {[%emt 0:04:32]} e6 {[%emt 0:01:04]} 4. Nf3 {[%emt 0:03:15]} Nf6 {[%emt 0:03:08]} 5. Bg5 {[%emt 0:02:24]} c6 {[%emt 0:17:34]} 6. Qb3 {[%emt 0:01:45]} b6 {[%emt 0:06:15]} 7. e3 {[%emt 0:02:04]} Be7 {[%emt 0:01:14]} 8. Be2 {[%emt 0:03:07]} O-O {[%emt 0:01:49]} 9. O-O {[%emt 0:01:15]} Nbd7 {[%emt 0:04:15]} 10. Nh4 {[%emt 0:05:43]} dxc4 {[%emt 0:08:44]} 11. Qxc4 {[%emt 0:02:30]} c5 {[%emt 0:03:54]} 12. dxc5 {[%emt 0:04:35]} Nxc5 {[%emt 0:02:46]} 13. Rfd1 {[%emt 0:01:12]} Qe8 {[%emt 0:02:07]} 14. Qf4 {[%emt 0:09:32]} Bg6 {[%emt 0:09:57]} 15. Nxg6 {[%emt 0:00:32]} fxg6 {[%emt 0:00:26]} 16. Bb5 {[%emt 0:06:23]} Qc8 {[%emt 0:02:56]} 17. Bxf6 {[%emt 0:10:15]} Bxf6 {[%emt 0:00:59]} 18. Qg4 {[%emt 0:00:44]} Bxc3 {[%emt 0:03:21]} 19. bxc3 {[%emt 0:00:41]} e5 {[%emt 0:01:24]} 20. Qxc8 {[%emt 0:07:50]} Raxc8 {[%emt 0:00:11]} 21. f3 {[%emt 0:00:50]} e4 {[%emt 0:03:37]} 22. Bc4+ {[%emt 0:03:57]} Kh8 {[%emt 0:00:12]} 23. Bd5 {[%emt 0:00:26]} exf3 {[%emt 0:00:51]} 24. gxf3 {[%emt 0:00:59]} Rce8 {[%emt 0:02:06]} 25. Kf2 {[%emt 0:01:05]} Ne4+ {[%emt 0:03:54]} 26. Bxe4 {[%emt 0:00:40]} Rxe4 {[%emt 0:00:22]} 27. Rd4 {[%emt 0:00:25]} Re7 {[%emt 0:01:02]} 28. Ke2 {[%emt 0:00:51]} Rfe8 {[%emt 0:01:34]} 29. e4 {[%emt 0:00:20]} Kg8 {[%emt 0:01:01]} 30. a4 {[%emt 0:00:34]} Rc7 {[%emt 0:01:04]} 31. Rc1 {[%emt 0:01:38]} Rec8 {[%emt 0:00:51]} 32. Kd3 {[%emt 0:01:58]} Rf8 {[%emt 0:01:24]} 33. Rf1 {[%emt 0:02:16]} Rcf7 {[%emt 0:00:33]} 34. Ke3 {[%emt 0:00:11]} Rc7 {[%emt 0:01:10]} 35. c4 {[%emt 0:00:48]} Rfc8 {[%emt 0:01:22]} 36. Kd3 {[%emt 0:00:21]} Rc5 {[%emt 0:01:04]} 37. f4 {[%emt 0:02:19]} Rh5 {[%emt 0:02:02]} 38. Rd7 {[%emt 0:00:53]} Rxh2 {[%emt 0:01:13]} 39. Rxa7 {[%emt 0:01:15]} Rd8+ {[%emt 0:01:00]} 40. Ke3 {[%emt 0:02:09]} Rh3+ {[%emt 0:00:42]} 41. Rf3 {[%emt 0:30:30]} Rd3+ {[%emt 0:31:43]} 42. Kxd3 {[%emt 0:00:48]} Rxf3+ {[%emt 0:00:08]} 43. Kd4 {[%emt 0:00:02]} Rxf4 {[%emt 0:00:12]} 44. a5 {[%emt 0:00:48]} bxa5 {[%emt 0:01:48]} 45. c5 {[%emt 0:00:29]} Rf7 {[%emt 0:03:52]} 46. Rxa5 {[%emt 0:01:51]} h5 {[%emt 0:02:38]} 47. c6 {[%emt 0:02:22]} h4 {[%emt 0:00:00]} 48. Rg5 {[%emt 0:00:00]} Rc7 {[%emt 0:00:00]} 49. Kd5 {[%emt 0:00:00]} Kf7 {[%emt 0:00:00]} 50. Rg4 {[%emt 0:00:00]} Ke7 {[%emt 0:00:00]} 51. Rxg6 {[%emt 0:00:00]} Kf7 {[%emt 0:00:00]} 52. Rg4 {[%emt 0:00:00]} Ke7 {[%emt 0:00:00]} 53. Rxg7+ {[%emt 0:00:00]} Kd8 {[%emt 0:00:00]} 54. Rg8+ {[%emt 0:00:00]} Ke7 {[%emt 0:00:00]} 55. Rh8 {[%emt 0:00:00]} h3 {[%emt 0:00:00]} 56. Rxh3 {[%emt 0:00:00]} Rc8 {[%emt 0:00:00]} 57. Rh7+ {[%emt 0:00:00]} Kd8 {[%emt 0:00:00]} 58. Rh8+ {[%emt 0:00:00]} Kc7 {[%emt 0:00:00]} 59. Rxc8+ {[%emt 0:00:00]} Kxc8 {[%emt 0:00:00]} 60. Kd6 {[%emt 0:00:00]} Kd8 {[%emt 0:00:00]} 61. c7+ {[%emt 0:00:00]} Kc8 {[%emt 0:00:00]} 62. e5 {[%emt 0:00:00]} Kb7 {[%emt 0:00:00]} 63. Kd7 {[%emt 0:00:00]} Ka7 {[%emt 0:00:00]} 64. c8=Q {[%emt 0:00:00]} Kb6 {[%emt 0:00:00]} 65. Qc4 {[%emt 0:00:00]} Ka5 {[%emt 0:00:00]} 66. Qb3 {[%emt 0:00:00]} Ka6 {[%emt 0:00:00]} 67. Kc6 {[%emt 0:00:00]} Ka7 {[%emt 0:00:00]} 68. Qb7# {[%emt 0:00:00]} 1-0

[Event "WCCC G10 2019"]
[Site "Weifang"]
[Date "2019.08.23"]
[Round "3.5"]
[White "Yesugen Khuchbayar"]
[Black "Mou, Iris"]
[Result "1/2-1/2"]
[ECO "C01"]
[WhiteElo "1325"]
[BlackElo "1669"]
[Annotator "NA"]
[PlyCount "86"]
[EventDate "2019.08.21"]
[EventType "swiss"]
[EventCountry "CHN"]
[SourceTitle "playchess.com"]
[Source "ChessBase"]
[SourceQuality "1"]
[TimeControl "40/5400+30:1800+30"]

1. e4 {[%emt 0:00:00]} e6 {[%emt 0:00:00]} 2. d4 {[%emt 0:00:00]} d5 {[%emt 0:00:00]} 3. exd5 {[%emt 0:00:00]} exd5 {[%emt 0:00:00]} 4. Bd3 {[%emt 0:00:00]} Nc6 {[%emt 0:00:06]} 5. Nf3 {[%emt 0:00:09]} Bd6 {[%emt 0:00:08]} 6. O-O {[%emt 0:00:40]} Bg4 {[%emt 0:00:08]} 7. Be3 {[%emt 0:03:07]} Nge7 {[%emt 0:00:37]} 8. c4 {[%emt 0:08:06]} dxc4 {[%emt 0:03:23]} 9. Bxc4 {[%emt 0:01:11]} Qd7 {[%emt 0:01:52]} 10. Nbd2 {[%emt 0:20:01]} O-O {[%emt 0:09:19]} 11. Qb3 {[%emt 0:22:21]} a6 {[%emt 0:06:34]} 12. a3 {[%emt 0:23:53]} Na5 {[%emt 0:05:30]} 13. Qc3 {[%emt 0:00:29]} Nxc4 {[%emt 0:00:58]} 14. Qxc4 {[%emt 0:00:14]} Be6 {[%emt 0:02:48]} 15. Qc1 {[%emt 0:02:01]} Bd5 {[%emt 0:07:04]} 16. Ne5 {[%emt 0:04:34]} Qf5 {[%emt 0:09:13]} 17. f4 {[%emt 0:04:05]} f6 {[%emt 0:07:20]} 18. Nec4 {[%emt 0:00:50]} Qg4 {[%emt 0:02:47]} 19. Rf2 {[%emt 0:01:03]} Nf5 {[%emt 0:03:35]} 20. Qc3 {[%emt 0:02:06]} Rfe8 {[%emt 0:03:20]} 21. Re1 {[%emt 0:01:48]} Bxf4 {[%emt 0:03:33]} 22. Nf1 {[%emt 0:02:54]} Bd6 {[%emt 0:07:11]} 23. h3 {[%emt 0:00:45]} Qg6 {[%emt 0:02:45]} 24. Nxd6 {[%emt 0:00:30]} cxd6 {[%emt 0:01:39]} 25. Bd2 {[%emt 0:00:44]} Rxe1 {[%emt 0:05:32]} 26. Bxe1 {[%emt 0:00:01]} Re8 {[%emt 0:01:39]} 27. Bd2 {[%emt 0:00:10]} h6 {[%emt 0:02:03]} 28. Qc2 {[%emt 0:01:07]} Be4 {[%emt 0:01:04]} 29. Qa4 {[%emt 0:00:17]} Nh4 {[%emt 0:02:27]} 30. Qb3+ {[%emt 0:01:03]} Kh7 {[%emt 0:02:09]} 31. Qg3 {[%emt 0:00:12]} Nf5 {[%emt 0:02:08]} 32. Qxg6+ {[%emt 0:00:16]} Kxg6 {[%emt 0:00:07]} 33. Bc3 {[%emt 0:00:19]} d5 {[%emt 0:01:54]} 34. g4 {[%emt 0:00:31]} Nd6 {[%emt 0:01:52]} 35. Nd2 {[%emt 0:00:06]} Bd3 {[%emt 0:02:09]} 36. Kg2 {[%emt 0:00:52]} Nb5 {[%emt 0:01:50]} 37. Rf3 {[%emt 0:00:48]} Re2+ {[%emt 0:02:34]} 38. Rf2 {[%emt 0:00:07]} Nxc3 {[%emt 0:00:26]} 39. bxc3 {[%emt 0:00:13]} Kg5 {[%emt 0:00:43]} 40. Rxe2 {[%emt 0:00:15]} Bxe2 {[%emt 0:00:08]} 41. Kg3 {[%emt 0:30:11]} h5 {[%emt 0:31:18]} 42. gxh5 {[%emt 0:00:10]} Kxh5 {[%emt 0:00:00]} 43. h4 {[%emt 0:00:00]} g5 {[%emt 0:00:00]} 1/2-1/2

[Event "WCCC G10 2019"]
[Site "Weifang"]
[Date "2019.08.23"]
[Round "3.7"]
[White "Feng, Eunice"]
[Black "Sneha Halder"]
[Result "1-0"]
[ECO "B01"]
[WhiteElo "1280"]
[BlackElo "1561"]
[Annotator "NA"]
[PlyCount "113"]
[EventDate "2019.08.21"]
[EventType "swiss"]
[EventCountry "CHN"]
[SourceTitle "playchess.com"]
[Source "ChessBase"]
[SourceQuality "1"]
[TimeControl "40/5400+30:1800+30"]

1. e4 {[%emt 0:00:00]} d5 {[%emt 0:00:00]} 2. exd5 {[%emt 0:00:00]} Qxd5 {[%emt 0:00:00]} 3. Nc3 {[%emt 0:00:00]} Qa5 {[%emt 0:00:07]} 4. d4 {[%emt 0:00:01]} Nf6 {[%emt 0:00:15]} 5. Nf3 {[%emt 0:00:33]} c6 {[%emt 0:00:27]} 6. Be2 {[%emt 0:00:48]} Bf5 {[%emt 0:00:43]} 7. O-O {[%emt 0:02:12]} e6 {[%emt 0:01:30]} 8. Bf4 {[%emt 0:02:00]} Nbd7 {[%emt 0:00:38]} 9. a3 {[%emt 0:02:24]} Nd5 {[%emt 0:00:40]} 10. Nxd5 {[%emt 0:01:07]} cxd5 {[%emt 0:00:30]} 11. c3 {[%emt 0:04:08]} Qb6 {[%emt 0:01:00]} 12. b3 {[%emt 0:03:40]} Bd6 {[%emt 0:00:38]} 13. Bxd6 {[%emt 0:00:56]} Qxd6 {[%emt 0:00:44]} 14. c4 {[%emt 0:02:13]} O-O {[%emt 0:02:59]} 15. c5 {[%emt 0:01:27]} Qc7 {[%emt 0:00:29]} 16. b4 {[%emt 0:01:27]} a5 {[%emt 0:03:36]} 17. Nh4 {[%emt 0:05:07]} Bg6 {[%emt 0:00:50]} 18. Nxg6 {[%emt 0:00:15]} hxg6 {[%emt 0:00:04]} 19. Qd2 {[%emt 0:00:43]} Rfe8 {[%emt 0:01:50]} 20. f4 {[%emt 0:02:03]} Ra7 {[%emt 0:02:02]} 21. g3 {[%emt 0:04:30]} Nf6 {[%emt 0:02:02]} 22. Qb2 {[%emt 0:04:14]} Ne4 {[%emt 0:03:02]} 23. b5 {[%emt 0:01:57]} b6 {[%emt 0:02:10]} 24. c6 {[%emt 0:00:23]} g5 {[%emt 0:01:20]} 25. Bd3 {[%emt 0:12:26]} gxf4 {[%emt 0:08:34]} 26. Rxf4 {[%emt 0:00:27]} e5 {[%emt 0:01:13]} 27. dxe5 {[%emt 0:00:56]} Nc5 {[%emt 0:01:07]} 28. Bf1 {[%emt 0:05:52]} Qxe5 {[%emt 0:01:27]} 29. Qxe5 {[%emt 0:00:10]} Rxe5 {[%emt 0:00:05]} 30. Rd1 {[%emt 0:00:49]} Ne6 {[%emt 0:01:18]} 31. Rf2 {[%emt 0:01:46]} Ra8 {[%emt 0:00:32]} 32. Re2 {[%emt 0:04:22]} Rxe2 {[%emt 0:01:34]} 33. Bxe2 {[%emt 0:00:06]} Rd8 {[%emt 0:00:34]} 34. Bg4 {[%emt 0:03:34]} Nc7 {[%emt 0:03:01]} 35. a4 {[%emt 0:00:21]} Re8 {[%emt 0:00:43]} 36. Bf3 {[%emt 0:00:30]} Re5 {[%emt 0:01:27]} 37. Kf2 {[%emt 0:03:35]} Kf8 {[%emt 0:00:32]} 38. Rd3 {[%emt 0:00:49]} Ke7 {[%emt 0:02:04]} 39. Re3 {[%emt 0:00:11]} f6 {[%emt 0:00:37]} 40. Ke2 {[%emt 0:05:41]} Kd6 {[%emt 0:00:41]} 41. Kd3 {[%emt 0:31:25]} Ne6 {[%emt 0:30:42]} 42. Bd1 {[%emt 0:00:23]} d4 {[%emt 0:04:00]} 43. Re2 {[%emt 0:02:25]} Nc5+ {[%emt 0:00:42]} 44. Kd2 {[%emt 0:01:35]} Ne4+ {[%emt 0:03:03]} 45. Kd3 {[%emt 0:01:17]} Nc5+ {[%emt 0:09:43]} 46. Kd2 {[%emt 0:01:03]} d3 {[%emt 0:06:15]} 47. Rxe5 {[%emt 0:01:05]} fxe5 {[%emt 0:00:22]} 48. Ke3 {[%emt 0:00:12]} Kc7 {[%emt 0:07:33]} 49. h4 {[%emt 0:00:09]} Kd6 {[%emt 0:00:03]} 50. g4 {[%emt 0:00:06]} Ke7 {[%emt 0:00:18]} 51. h5 {[%emt 0:00:09]} Kd6 {[%emt 0:00:56]} 52. g5 {[%emt 0:00:06]} Ne6 {[%emt 0:07:19]} 53. h6 {[%emt 0:00:14]} gxh6 {[%emt 0:03:11]} 54. gxh6 {[%emt 0:00:05]} Ng5 {[%emt 0:02:31]} 55. Kxd3 {[%emt 0:00:14]} Nf7 {[%emt 0:00:09]} 56. h7 {[%emt 0:00:08]} e4+ {[%emt 0:02:46]} 57. Ke3 {[%emt 0:00:14]} 1-0

[Event "WCCC G10 2019"]
[Site "Weifang"]
[Date "2019.08.23"]
[Round "3.8"]
[White "Budaeva, Victoria"]
[Black "Ning, Isabelle Yixuan"]
[Result "0-1"]
[ECO "B20"]
[WhiteElo "1074"]
[BlackElo "1701"]
[Annotator "NA"]
[PlyCount "76"]
[EventDate "2019.08.21"]
[EventType "swiss"]
[EventCountry "CHN"]
[SourceTitle "playchess.com"]
[Source "ChessBase"]
[SourceQuality "1"]
[TimeControl "40/5400+30:1800+30"]

1. e4 {[%emt 0:00:00]} c5 {[%emt 0:00:00]} 2. d3 {[%emt 0:00:00]} Nc6 {[%emt 0:00:00]} 3. Ne2 {[%emt 0:00:03]} g6 {[%emt 0:00:05]} 4. g3 {[%emt 0:00:08]} Bg7 {[%emt 0:00:13]} 5. Bg2 {[%emt 0:00:28]} d6 {[%emt 0:00:37]} 6. c3 {[%emt 0:00:15]} e5 {[%emt 0:00:44]} 7. Na3 {[%emt 0:00:50]} Nge7 {[%emt 0:02:18]} 8. Nc2 {[%emt 0:00:22]} O-O {[%emt 0:07:08]} 9. O-O {[%emt 0:00:21]} d5 {[%emt 0:08:52]} 10. exd5 {[%emt 0:03:52]} Nxd5 {[%emt 0:00:09]} 11. Ne3 {[%emt 0:00:13]} Be6 {[%emt 0:07:03]} 12. h3 {[%emt 0:00:49]} Qd7 {[%emt 0:03:13]} 13. Kh2 {[%emt 0:00:52]} Rac8 {[%emt 0:05:49]} 14. Nxd5 {[%emt 0:00:52]} Bxd5 {[%emt 0:00:10]} 15. Bxd5 {[%emt 0:00:08]} Qxd5 {[%emt 0:00:09]} 16. Be3 {[%emt 0:02:20]} Rfd8 {[%emt 0:07:38]} 17. Nc1 {[%emt 0:01:50]} e4 {[%emt 0:06:33]} 18. Qb3 {[%emt 0:00:57]} exd3 {[%emt 0:04:09]} 19. Qxd5 {[%emt 0:01:10]} Rxd5 {[%emt 0:00:08]} 20. c4 {[%emt 0:00:14]} Rdd8 {[%emt 0:02:25]} 21. Rb1 {[%emt 0:05:53]} Ne5 {[%emt 0:04:01]} 22. Rd1 {[%emt 0:01:12]} d2 {[%emt 0:01:22]} 23. Nb3 {[%emt 0:00:32]} Nxc4 {[%emt 0:01:25]} 24. Nxd2 {[%emt 0:00:30]} Nxb2 {[%emt 0:03:54]} 25. Rdc1 {[%emt 0:00:46]} b6 {[%emt 0:04:23]} 26. Rc2 {[%emt 0:00:50]} Nd3 {[%emt 0:01:40]} 27. a3 {[%emt 0:00:40]} Bd4 {[%emt 0:05:27]} 28. Bxd4 {[%emt 0:00:49]} Rxd4 {[%emt 0:01:36]} 29. Nf3 {[%emt 0:00:34]} Re4 {[%emt 0:02:06]} 30. Rd1 {[%emt 0:00:46]} Ne5 {[%emt 0:02:13]} 31. Ng5 {[%emt 0:00:26]} Ra4 {[%emt 0:00:27]} 32. Rc3 {[%emt 0:01:06]} h6 {[%emt 0:03:15]} 33. Nf3 {[%emt 0:00:42]} Nxf3+ {[%emt 0:00:36]} 34. Rxf3 {[%emt 0:00:05]} Rd4 {[%emt 0:00:13]} 35. Rxd4 {[%emt 0:00:16]} cxd4 {[%emt 0:00:07]} 36. Rd3 {[%emt 0:00:05]} Rc3 {[%emt 0:00:27]} 37. Rxd4 {[%emt 0:00:10]} Rxa3 {[%emt 0:00:06]} 38. Rd7 {[%emt 0:00:17]} a5 {[%emt 0:01:45]} 0-1

[Event "WCCC G10 2019"]
[Site "Weifang"]
[Date "2019.08.23"]
[Round "3.10"]
[White "Maral Altankhuyag"]
[Black "Nurgaliyeva, Zarina"]
[Result "0-1"]
[ECO "C50"]
[WhiteElo "1078"]
[BlackElo "1474"]
[Annotator "NA"]
[PlyCount "114"]
[EventDate "2019.08.21"]
[EventType "swiss"]
[EventCountry "CHN"]
[SourceTitle "playchess.com"]
[Source "ChessBase"]
[SourceQuality "1"]
[TimeControl "40/5400+30:1800+30"]

1. e4 {[%emt 0:00:00]} e5 {[%emt 0:00:00]} 2. Nf3 {[%emt 0:00:00]} Nc6 {[%emt 0:00:00]} 3. Bc4 {[%emt 0:00:00]} Bc5 {[%emt 0:00:00]} 4. Nc3 {[%emt 0:00:29]} Nf6 {[%emt 0:00:00]} 5. d3 {[%emt 0:00:14]} h6 {[%emt 0:00:08]} 6. O-O {[%emt 0:00:07]} d6 {[%emt 0:00:07]} 7. h3 {[%emt 0:00:10]} O-O {[%emt 0:00:08]} 8. Be3 {[%emt 0:00:22]} Bb6 {[%emt 0:00:19]} 9. Re1 {[%emt 0:03:21]} Re8 {[%emt 0:00:48]} 10. Bxb6 {[%emt 0:01:35]} axb6 {[%emt 0:00:30]} 11. Qd2 {[%emt 0:06:29]} Be6 {[%emt 0:03:37]} 12. Bb3 {[%emt 0:00:23]} Nh5 {[%emt 0:02:44]} 13. Ne2 {[%emt 0:02:25]} Qf6 {[%emt 0:05:18]} 14. Bxe6 {[%emt 0:01:02]} fxe6 {[%emt 0:00:25]} 15. d4 {[%emt 0:00:48]} Rf8 {[%emt 0:02:23]} 16. Rf1 {[%emt 0:03:46]} Qg6 {[%emt 0:00:56]} 17. Qe3 {[%emt 0:04:42]} Nf4 {[%emt 0:01:30]} 18. Nxf4 {[%emt 0:01:30]} Rxf4 {[%emt 0:00:11]} 19. dxe5 {[%emt 0:01:08]} Rxe4 {[%emt 0:01:17]} 20. Qd3 {[%emt 0:07:33]} Nb4 {[%emt 0:03:51]} 21. Nh4 {[%emt 0:05:31]} Qh7 {[%emt 0:13:34]} 22. Qg3 {[%emt 0:01:01]} Nxc2 {[%emt 0:02:43]} 23. Rac1 {[%emt 0:00:42]} Rxe5 {[%emt 0:00:49]} 24. Qc3 {[%emt 0:05:46]} Rc5 {[%emt 0:00:41]} 25. Qb3 {[%emt 0:03:07]} Qe4 {[%emt 0:07:25]} 26. Nf3 {[%emt 0:04:08]} d5 {[%emt 0:08:03]} 27. Rfd1 {[%emt 0:11:47]} Qb4 {[%emt 0:06:07]} 28. Qxb4 {[%emt 0:04:14]} Nxb4 {[%emt 0:00:05]} 29. a3 {[%emt 0:01:24]} Rxc1 {[%emt 0:02:10]} 30. Rxc1 {[%emt 0:00:11]} Nc6 {[%emt 0:00:15]} 31. Re1 {[%emt 0:00:12]} Kf7 {[%emt 0:00:22]} 32. g3 {[%emt 0:00:53]} Ra5 {[%emt 0:00:25]} 33. Kf1 {[%emt 0:01:09]} Rc5 {[%emt 0:00:08]} 34. h4 {[%emt 0:02:24]} Rc2 {[%emt 0:00:21]} 35. Rb1 {[%emt 0:00:58]} e5 {[%emt 0:00:41]} 36. Rd1 {[%emt 0:00:41]} Ke6 {[%emt 0:00:21]} 37. Rb1 {[%emt 0:02:12]} e4 {[%emt 0:04:26]} 38. Ne1 {[%emt 0:00:09]} Rd2 {[%emt 0:01:44]} 39. g4 {[%emt 0:00:52]} Ne5 {[%emt 0:00:10]} 40. g5 {[%emt 0:01:32]} Ng4 {[%emt 0:00:24]} 41. gxh6 {[%emt 0:31:38]} gxh6 {[%emt 0:30:11]} 42. Kg2 {[%emt 0:00:43]} Rxf2+ {[%emt 0:00:43]} 43. Kg3 {[%emt 0:00:12]} h5 {[%emt 0:00:10]} 44. Rc1 {[%emt 0:00:57]} c5 {[%emt 0:00:39]} 45. b4 {[%emt 0:01:44]} c4 {[%emt 0:00:21]} 46. Rc3 {[%emt 0:00:31]} b5 {[%emt 0:00:20]} 47. Nc2 {[%emt 0:01:38]} Ke5 {[%emt 0:00:13]} 48. Ne1 {[%emt 0:01:53]} d4 {[%emt 0:00:05]} 49. Rc1 {[%emt 0:00:08]} d3 {[%emt 0:00:15]} 50. Nxd3+ {[%emt 0:02:12]} exd3 {[%emt 0:00:08]} 51. Rd1 {[%emt 0:00:39]} Kd4 {[%emt 0:00:07]} 52. a4 {[%emt 0:00:39]} c3 {[%emt 0:00:14]} 53. axb5 {[%emt 0:00:41]} d2 {[%emt 0:00:06]} 54. Kh3 {[%emt 0:00:26]} c2 {[%emt 0:00:07]} 55. Rh1 {[%emt 0:00:16]} c1=Q {[%emt 0:00:08]} 56. Rxc1 {[%emt 0:00:06]} dxc1=Q {[%emt 0:00:07]} 57. b6 {[%emt 0:00:07]} Qe3# {[%emt 0:00:07]} 0-1

[Event "WCCC G10 2019"]
[Site "Weifang"]
[Date "2019.08.24"]
[Round "4.1"]
[White "Shukhman, Anna"]
[Black "Li, Rachael"]
[Result "0-1"]
[ECO "B92"]
[WhiteElo "1806"]
[BlackElo "1911"]
[Annotator "NA"]
[PlyCount "140"]
[EventDate "2019.08.21"]
[EventType "swiss"]
[EventCountry "CHN"]
[SourceTitle "playchess.com"]
[Source "ChessBase"]
[SourceQuality "1"]
[TimeControl "40/5400+30:1800+30"]

1. e4 {[%emt 0:00:00]} c5 {[%emt 0:00:00]} 2. Nf3 {[%emt 0:00:00]} d6 {[%emt 0:00:00]} 3. d4 {[%emt 0:00:00]} cxd4 {[%emt 0:00:00]} 4. Nxd4 {[%emt 0:00:00]} Nf6 {[%emt 0:00:00]} 5. Nc3 {[%emt 0:00:00]} a6 {[%emt 0:00:00]} 6. Nb3 {[%emt 0:00:00]} e5 {[%emt 0:00:53]} 7. Bg5 {[%emt 0:00:00]} Be6 {[%emt 0:00:34]} 8. Be2 {[%emt 0:01:34]} Be7 {[%emt 0:00:47]} 9. Bxf6 {[%emt 0:00:21]} Bxf6 {[%emt 0:00:14]} 10. Nd5 {[%emt 0:00:08]} Nd7 {[%emt 0:02:49]} 11. Qd3 {[%emt 0:01:23]} Rc8 {[%emt 0:08:12]} 12. O-O-O {[%emt 0:04:05]} O-O {[%emt 0:07:04]} 13. Kb1 {[%emt 0:07:43]} Nc5 {[%emt 0:11:11]} 14. Qf3 {[%emt 0:14:44]} Bxd5 {[%emt 0:09:58]} 15. Rxd5 {[%emt 0:00:20]} Qc7 {[%emt 0:01:10]} 16. Rhd1 {[%emt 0:02:08]} Rfd8 {[%emt 0:05:47]} 17. Qe3 {[%emt 0:14:40] [#]} (17. Nxc5 $14 {keeps the upper hand.} dxc5 18. Qg4) 17... Ne6 $17 {[%emt 0:04:10]} 18. R5d2 {[%emt 0:00:57]} Bg5 {[%emt 0:00:59]} 19. Qg3 {[%emt 0:00:46]} Bxd2 {[%emt 0:00:36]} 20. Rxd2 {[%emt 0:00:05]} d5 {[%emt 0:01:00]} 21. exd5 {[%emt 0:02:39]} Rxd5 {[%emt 0:00:24]} 22. Bd3 {[%emt 0:00:41]} Nf4 {[%emt 0:06:29]} 23. Qf3 {[%emt 0:02:35]} Rcd8 {[%emt 0:01:41]} 24. Qe3 {[%emt 0:06:44]} Nxd3 {[%emt 0:03:30]} 25. cxd3 {[%emt 0:02:27]} Qd6 {[%emt 0:01:24]} 26. Nc1 {[%emt 0:00:13]} Qg6 {[%emt 0:05:18]} 27. Rc2 {[%emt 0:04:20]} Qxg2 {[%emt 0:03:34]} 28. f4 {[%emt 0:00:14]} Qg4 {[%emt 0:01:19]} 29. fxe5 {[%emt 0:00:21]} Qd4 {[%emt 0:01:04]} 30. Qxd4 {[%emt 0:00:53]} Rxd4 {[%emt 0:00:36]} 31. Rc7 {[%emt 0:02:43]} R4d7 {[%emt 0:00:10]} 32. Rc4 {[%emt 0:00:19]} Kf8 {[%emt 0:01:18]} 33. Kc2 {[%emt 0:00:27]} Rd5 {[%emt 0:01:27]} 34. Re4 {[%emt 0:01:09]} Ke7 {[%emt 0:00:24]} 35. Kc3 {[%emt 0:01:55]} Rc8+ {[%emt 0:01:31]} 36. Kd2 {[%emt 0:01:53]} Rdc5 {[%emt 0:00:22]} 37. Nb3 {[%emt 0:01:36]} Rc2+ {[%emt 0:00:19]} 38. Ke3 {[%emt 0:00:06]} Rxh2 {[%emt 0:01:01]} 39. Rb4 {[%emt 0:00:42]} b5 {[%emt 0:00:41]} 40. Nd4 {[%emt 0:00:21]} g6 {[%emt 0:03:11]} 41. Ke4 {[%emt 0:32:05]} Rh4+ {[%emt 0:30:41]} 42. Ke3 {[%emt 0:00:59]} Rh5 {[%emt 0:02:48]} 43. Ke4 {[%emt 0:00:29]} f6 {[%emt 0:02:50]} 44. exf6+ {[%emt 0:15:06]} Kxf6 {[%emt 0:00:24]} 45. Nf3 {[%emt 0:00:46]} Rf5 {[%emt 0:02:11]} 46. d4 {[%emt 0:01:07]} Rc2 {[%emt 0:03:49]} 47. a4 {[%emt 0:01:55]} a5 {[%emt 0:01:02]} 48. Rxb5 {[%emt 0:00:37]} Rxb5 {[%emt 0:00:16]} 49. axb5 {[%emt 0:00:09]} Rxb2 {[%emt 0:00:11]} 50. Kd5 {[%emt 0:00:36]} Rxb5+ {[%emt 0:00:12]} 51. Kc6 {[%emt 0:00:08]} Rb3 {[%emt 0:00:27]} 52. Ne5 {[%emt 0:00:09]} Ke6 {[%emt 0:00:39]} 53. Kc5 {[%emt 0:00:40]} Rc3+ {[%emt 0:00:09]} 54. Kb5 {[%emt 0:00:04]} Kd5 {[%emt 0:00:03]} 55. Kxa5 {[%emt 0:00:05]} Kxd4 {[%emt 0:00:04]} 56. Nf7 {[%emt 0:00:07]} Rc5+ {[%emt 0:00:04]} 57. Kb4 {[%emt 0:00:04]} Rd5 {[%emt 0:00:05]} 58. Nh6 {[%emt 0:00:03]} Rd8 {[%emt 0:00:13]} 59. Kb3 {[%emt 0:00:06]} Rc8 {[%emt 0:00:07]} 60. Kb2 {[%emt 0:00:07]} Ke4 {[%emt 0:00:04]} 61. Nf7 {[%emt 0:00:06]} Kd5 {[%emt 0:00:36]} 62. Nh6 {[%emt 0:01:08]} g5 {[%emt 0:00:37]} 63. Ng4 {[%emt 0:00:05]} Rf8 {[%emt 0:00:08]} 64. Kc3 {[%emt 0:00:03]} Ke4 {[%emt 0:00:05]} 65. Kd2 {[%emt 0:00:04]} Kf3 {[%emt 0:00:06]} 66. Ne5+ {[%emt 0:00:06]} Kg3 {[%emt 0:00:05]} 67. Nd3 {[%emt 0:00:10]} Rd8 {[%emt 0:00:30]} 68. Ke2 {[%emt 0:00:07]} Rxd3 {[%emt 0:00:04]} 69. Kf1 {[%emt 0:00:03]} Re3 {[%emt 0:00:08]} 70. Kg1 {[%emt 0:00:04]} Re1# {[%emt 0:00:04]} 0-1